[Event "GrandPrix_30.05"]
[Site "Chess.com"]
[Date "2020.05.30"]
[Round "6"]
[White "OK97"]
[Black "Forking_U"]
[Result "1-0"]
[WhiteElo "2314"]
[BlackElo "2134"]
[TimeControl "600+2"]
[EndTime "10:54:14 PDT"]
[Termination "OK97 won by resignation"]

1. e4 {[%clk 0:10:01.9]} 1... e5 {[%clk 0:10:00.2]} 2. Nf3 {[%clk 0:10:02.2]}
2... Nc6 {[%clk 0:10:01.7]} 3. Bb5 {[%clk 0:10:03.2]} 3... Nf6 {[%clk
0:10:02.6]} 4. O-O {[%clk 0:10:03.1]} 4... Nxe4 {[%clk 0:10:01.7]} 5. d4 {[%clk
0:10:03.9]} 5... Nd6 {[%clk 0:10:02.7]} 6. dxe5 {[%clk 0:10:04.8]} 6... Nxb5
{[%clk 0:10:03.2]} 7. a4 {[%clk 0:10:05.9]} 7... Nbd4 {[%clk 0:10:04.4]} 8. Nxd4
{[%clk 0:10:06.3]} 8... Nxd4 {[%clk 0:10:06]} 9. Qxd4 {[%clk 0:10:06.8]} 9... d5
{[%clk 0:10:07.6]} 10. Qd3 {[%clk 0:10:07.4]} 10... c6 {[%clk 0:08:57.7]} 11. a5
{[%clk 0:10:07.1]} 11... Qd7 {[%clk 0:08:50.3]} 12. Be3 {[%clk 0:09:56.9]} 12...
Qf5 {[%clk 0:08:29.8]} 13. Qc3 {[%clk 0:09:40.6]} 13... Qg6 {[%clk 0:08:24.3]}
14. f4 {[%clk 0:09:31.3]} 14... Bf5 {[%clk 0:07:00.2]} 15. Bc5 {[%clk
0:08:10.7]} 15... Bxc2 {[%clk 0:05:58]} 16. Bxf8 {[%clk 0:08:02.5]} 16... Kxf8
{[%clk 0:05:59.9]} 17. Qb4+ {[%clk 0:07:40.9]} 17... Kg8 {[%clk 0:05:52.1]} 18.
Qxb7 {[%clk 0:07:39.9]} 18... Re8 {[%clk 0:05:27.1]} 19. Nd2 {[%clk 0:07:06.9]}
19... Bd3 {[%clk 0:04:59.5]} 20. Rfc1 {[%clk 0:06:52.9]} 20... Bb5 {[%clk
0:05:00.6]} 21. Qxa7 {[%clk 0:06:48.9]} 21... h5 {[%clk 0:04:53.7]} 22. Qd4
{[%clk 0:06:28.4]} 22... f6 {[%clk 0:04:37.8]} 23. a6 {[%clk 0:06:16.7]} 23...
Kh7 {[%clk 0:04:25.3]} 24. a7 {[%clk 0:05:59.4]} 24... fxe5 {[%clk 0:04:18.1]}
25. fxe5 {[%clk 0:06:01.2]} 25... Rhf8 {[%clk 0:03:53]} 26. Re1 {[%clk
0:05:58.9]} 26... Ra8 {[%clk 0:02:46.8]} 27. e6 {[%clk 0:05:48.7]} 27... Rfe8
{[%clk 0:02:21.3]} 28. Nf3 {[%clk 0:05:04.5]} 28... Kg8 {[%clk 0:02:15.8]} 29.
e7 {[%clk 0:04:53.7]} 29... Qf6 {[%clk 0:01:53.2]} 30. Qe3 {[%clk 0:04:31.4]}
30... h4 {[%clk 0:01:11.9]} 31. h3 {[%clk 0:04:18.7]} 31... g6 {[%clk
0:01:01.2]} 32. Nd4 {[%clk 0:02:38.6]} 1-0

[Event "GrandPrix_30.05"]
[Site "Chess.com"]
[Date "2020.05.30"]
[Round "6"]
[White "chessdjw"]
[Black "Yuri202062"]
[Result "1/2-1/2"]
[WhiteElo "2140"]
[BlackElo "2031"]
[TimeControl "600+2"]
[EndTime "10:54:17 PDT"]
[Termination "Game drawn by agreement"]

1. e4 {[%clk 0:09:51.1]} 1... c5 {[%clk 0:10:00.7]} 2. Nf3 {[%clk 0:09:47.9]}
2... d6 {[%clk 0:10:01.6]} 3. Bb5+ {[%clk 0:09:48.1]} 3... Bd7 {[%clk
0:10:01.8]} 4. c4 {[%clk 0:09:47.9]} 4... Nf6 {[%clk 0:09:58.2]} 5. Nc3 {[%clk
0:09:47.7]} 5... g6 {[%clk 0:09:57.4]} 6. d4 {[%clk 0:09:44]} 6... cxd4 {[%clk
0:09:57.6]} 7. Nxd4 {[%clk 0:09:44.8]} 7... Bg7 {[%clk 0:09:58.7]} 8. Be3 {[%clk
0:09:43.4]} 8... O-O {[%clk 0:09:58.3]} 9. Bxd7 {[%clk 0:09:43.3]} 9... Qxd7
{[%clk 0:09:55.4]} 10. h3 {[%clk 0:09:40.7]} 10... Rc8 {[%clk 0:08:40.5]} 11. b3
{[%clk 0:09:25.4]} 11... Nc6 {[%clk 0:08:33.3]} 12. Rc1 {[%clk 0:09:24.1]} 12...
Qd8 {[%clk 0:08:23.5]} 13. O-O {[%clk 0:09:12.3]} 13... a6 {[%clk 0:08:23.3]}
14. Qd2 {[%clk 0:07:59.2]} 14... Qa5 {[%clk 0:08:20.2]} 15. Rfd1 {[%clk
0:06:50]} 15... b5 {[%clk 0:07:33.8]} 16. cxb5 {[%clk 0:06:03.4]} 16... Nxd4
{[%clk 0:07:29.6]} 17. Bxd4 {[%clk 0:06:01.5]} 17... axb5 {[%clk 0:07:21.5]} 18.
Bxf6 {[%clk 0:04:53]} 18... Bxf6 {[%clk 0:07:20.6]} 19. Nd5 {[%clk 0:04:52.8]}
19... Qxd2 {[%clk 0:07:15]} 20. Rxc8+ {[%clk 0:04:52]} 20... Rxc8 {[%clk
0:07:14.2]} 21. Nxf6+ {[%clk 0:04:50.8]} 21... Kg7 {[%clk 0:07:07.7]} 22. Nh5+
{[%clk 0:04:24.8]} 22... gxh5 {[%clk 0:07:07.7]} 23. Rxd2 {[%clk 0:04:25.4]}
23... b4 {[%clk 0:06:52.5]} 24. Rd4 {[%clk 0:04:17.2]} 24... Rc2 {[%clk
0:06:31.9]} 25. Rxb4 {[%clk 0:04:17.3]} 25... Rxa2 {[%clk 0:06:32.5]} 26. h4
{[%clk 0:04:14.2]} 26... Kg6 {[%clk 0:05:35.4]} 27. Rb5 {[%clk 0:04:11.2]} 27...
Rb2 {[%clk 0:05:31.5]} 28. f3 {[%clk 0:04:08.5]} 28... f6 {[%clk 0:04:56.5]} 29.
Kh2 {[%clk 0:04:07.2]} 29... e5 {[%clk 0:04:03.4]} 30. Rb6 {[%clk 0:02:58.9]}
30... Rd2 {[%clk 0:03:56]} 31. b4 {[%clk 0:02:58.8]} 31... d5 {[%clk 0:03:52.2]}
32. exd5 {[%clk 0:02:52.9]} 32... Rxd5 {[%clk 0:03:52.2]} 33. Kg3 {[%clk
0:02:50.4]} 33... Rd2 {[%clk 0:03:48.7]} 34. b5 {[%clk 0:02:43.8]} 34... Rb2
{[%clk 0:03:49]} 35. Rb7 {[%clk 0:02:31.2]} 35... Rb4 {[%clk 0:03:43.7]} 36. b6
{[%clk 0:02:16.9]} 36... Rb2 {[%clk 0:03:44.2]} 37. Rb8 {[%clk 0:02:15.6]} 37...
Kg7 {[%clk 0:03:42.3]} 38. Kh2 {[%clk 0:02:01.9]} 38... Rb1 {[%clk 0:03:38.2]}
39. b7 {[%clk 0:01:51.3]} 39... f5 {[%clk 0:03:33.3]} 40. g3 {[%clk 0:01:45.7]}
40... e4 {[%clk 0:03:15.3]} 41. fxe4 {[%clk 0:01:43.3]} 41... fxe4 {[%clk
0:03:15.7]} 42. Kg2 {[%clk 0:01:44.5]} 42... Rb2+ {[%clk 0:03:12.7]} 43. Kf1
{[%clk 0:01:44.8]} 43... e3 {[%clk 0:03:10.8]} 44. Ke1 {[%clk 0:01:40.3]} 44...
e2 {[%clk 0:03:05.7]} 45. Kf2 {[%clk 0:01:30.9]} 45... h6 {[%clk 0:03:02.3]} 46.
Ke1 {[%clk 0:01:29.1]} 46... Kh7 {[%clk 0:03:02.3]} 47. Kf2 {[%clk 0:01:29.6]}
47... Kg7 {[%clk 0:03:01.9]} 48. Re8 {[%clk 0:01:14.3]} 48... Rxb7 {[%clk
0:02:59.8]} 49. Rxe2 {[%clk 0:01:13.7]} 49... Rb3 {[%clk 0:02:56.7]} 50. Re5
{[%clk 0:01:13.3]} 50... Kg6 {[%clk 0:02:56.7]} 51. Re6+ {[%clk 0:01:14.4]}
51... Kg7 {[%clk 0:02:56.3]} 52. Ra6 {[%clk 0:01:12.4]} 1/2-1/2

[Event "GrandPrix_30.05"]
[Site "Chess.com"]
[Date "2020.05.30"]
[Round "6"]
[White "Bosiocic"]
[Black "Kobalia"]
[Result "0-1"]
[WhiteElo "2640"]
[BlackElo "2465"]
[TimeControl "600+2"]
[EndTime "10:54:32 PDT"]
[Termination "Kobalia won on time"]

1. d4 {[%clk 0:10:01.9]} 1... d5 {[%clk 0:09:59.6]} 2. Bf4 {[%clk 0:10:02.9]}
2... c5 {[%clk 0:09:59.4]} 3. e3 {[%clk 0:10:03.4]} 3... Nc6 {[%clk 0:09:59.4]}
4. Nc3 {[%clk 0:10:03.9]} 4... cxd4 {[%clk 0:09:56.3]} 5. exd4 {[%clk
0:09:59.9]} 5... a6 {[%clk 0:09:57.4]} 6. Bd3 {[%clk 0:09:48.8]} 6... Nf6 {[%clk
0:09:57.9]} 7. Nge2 {[%clk 0:09:47.9]} 7... Bg4 {[%clk 0:09:49.4]} 8. f3 {[%clk
0:09:46.6]} 8... Bh5 {[%clk 0:09:50.2]} 9. Qd2 {[%clk 0:09:03.7]} 9... Bg6
{[%clk 0:09:49.4]} 10. Nd1 {[%clk 0:08:46.9]} 10... Bxd3 {[%clk 0:09:07.7]} 11.
Qxd3 {[%clk 0:08:46.6]} 11... e6 {[%clk 0:09:09]} 12. c3 {[%clk 0:08:47.8]}
12... Bd6 {[%clk 0:09:04.6]} 13. Bg5 {[%clk 0:08:38.5]} 13... O-O {[%clk
0:08:57.4]} 14. O-O {[%clk 0:08:27.3]} 14... b5 {[%clk 0:08:50.4]} 15. f4 {[%clk
0:08:10.3]} 15... b4 {[%clk 0:08:20.2]} 16. Ne3 {[%clk 0:07:57.9]} 16... bxc3
{[%clk 0:08:17.7]} 17. bxc3 {[%clk 0:07:58.5]} 17... Be7 {[%clk 0:08:16.1]} 18.
Bxf6 {[%clk 0:07:59]} 18... Bxf6 {[%clk 0:08:15.7]} 19. Ng4 {[%clk 0:07:59.7]}
19... h5 {[%clk 0:08:05.4]} 20. Ne5 {[%clk 0:07:56.8]} 20... Qc7 {[%clk
0:07:47.7]} 21. Rf3 {[%clk 0:07:29.4]} 21... Ne7 {[%clk 0:06:45]} 22. Rh3 {[%clk
0:07:01.6]} 22... g6 {[%clk 0:06:44.4]} 23. Ng3 {[%clk 0:06:16.7]} 23... h4
{[%clk 0:06:35.3]} 24. Ne2 {[%clk 0:06:16.3]} 24... Nf5 {[%clk 0:06:33.6]} 25.
g4 {[%clk 0:06:10.1]} 25... hxg3 {[%clk 0:06:28.2]} 26. hxg3 {[%clk 0:06:08.9]}
26... Kg7 {[%clk 0:06:28.9]} 27. g4 {[%clk 0:05:58.7]} 27... Nd6 {[%clk
0:06:28.6]} 28. Kg2 {[%clk 0:05:56.4]} 28... Rh8 {[%clk 0:06:19.8]} 29. Rah1
{[%clk 0:05:54.9]} 29... Ne4 {[%clk 0:06:07.8]} 30. Qf3 {[%clk 0:05:02]} 30...
Qb7 {[%clk 0:05:53.7]} 31. g5 {[%clk 0:04:34.5]} 31... Bxe5 {[%clk 0:04:15.7]}
32. fxe5 {[%clk 0:04:34.2]} 32... Rag8 {[%clk 0:04:16.7]} 33. c4 {[%clk
0:03:16.2]} 33... Qb2 {[%clk 0:03:35.4]} 34. cxd5 {[%clk 0:00:48.8]} 34... Rxh3
{[%clk 0:03:21.8]} 35. Rxh3 {[%clk 0:00:49.3]} 35... exd5 {[%clk 0:03:22.8]} 36.
Rh4 {[%clk 0:00:45]} 36... Qd2 {[%clk 0:03:17.3]} 37. Rg4 {[%clk 0:00:16.1]}
37... Rc8 {[%clk 0:03:07.7]} 38. Rf4 {[%clk 0:00:05.9]} 38... Nxg5 {[%clk
0:03:00]} 39. Qf2 {[%clk 0:00:04.3]} 39... Rc2 {[%clk 0:02:52.6]} 0-1

[Event "GrandPrix_30.05"]
[Site "Chess.com"]
[Date "2020.05.30"]
[Round "6"]
[White "GM_dmitrij"]
[Black "Nikame"]
[Result "1-0"]
[WhiteElo "2461"]
[BlackElo "2258"]
[TimeControl "600+2"]
[EndTime "10:54:41 PDT"]
[Termination "GM_dmitrij won by resignation"]

1. e4 {[%clk 0:10:01.9]} 1... d6 {[%clk 0:09:59.3]} 2. d4 {[%clk 0:10:02.9]}
2... Nf6 {[%clk 0:10:00.2]} 3. Nc3 {[%clk 0:10:02.4]} 3... e5 {[%clk 0:10:00.5]}
4. Nge2 {[%clk 0:10:01.2]} 4... Nc6 {[%clk 0:09:41.7]} 5. h3 {[%clk 0:09:44.4]}
5... exd4 {[%clk 0:09:37.2]} 6. Nxd4 {[%clk 0:09:45.3]} 6... g6 {[%clk 0:09:38]}
7. g4 {[%clk 0:09:38.5]} 7... Bg7 {[%clk 0:09:36.4]} 8. Bg2 {[%clk 0:09:23.7]}
8... O-O {[%clk 0:09:00.6]} 9. Nde2 {[%clk 0:09:23.3]} 9... Re8 {[%clk
0:08:09.8]} 10. O-O {[%clk 0:09:21.5]} 10... h5 {[%clk 0:07:34.1]} 11. g5 {[%clk
0:09:09.7]} 11... Nd7 {[%clk 0:07:34.3]} 12. f4 {[%clk 0:09:03]} 12... Nc5
{[%clk 0:07:09.9]} 13. Be3 {[%clk 0:09:02]} 13... Bd7 {[%clk 0:06:58.9]} 14. Qd2
{[%clk 0:08:30.9]} 14... Qc8 {[%clk 0:06:38.2]} 15. Kh2 {[%clk 0:08:29.1]} 15...
Rb8 {[%clk 0:06:35.1]} 16. Rad1 {[%clk 0:07:10.8]} 16... Be6 {[%clk 0:06:27.7]}
17. Nd4 {[%clk 0:06:57.8]} 17... Bc4 {[%clk 0:05:59.9]} 18. Rfe1 {[%clk
0:06:57.5]} 18... a5 {[%clk 0:05:39.1]} 19. b3 {[%clk 0:06:53.4]} 19... Ba6
{[%clk 0:05:31.3]} 20. Nxc6 {[%clk 0:06:23.8]} 20... bxc6 {[%clk 0:05:32]} 21.
Bxc5 {[%clk 0:06:25.1]} 21... dxc5 {[%clk 0:05:33]} 22. e5 {[%clk 0:06:26.1]}
22... c4 {[%clk 0:05:15.3]} 23. Bxc6 {[%clk 0:05:56.4]} 23... Rd8 {[%clk
0:04:58.8]} 24. Qxd8+ {[%clk 0:04:30]} 24... Qxd8 {[%clk 0:04:59.4]} 25. Rxd8+
{[%clk 0:04:31.7]} 25... Rxd8 {[%clk 0:05:00.4]} 26. Nd5 {[%clk 0:04:26.9]}
26... Bf8 {[%clk 0:04:53.4]} 27. Kg3 {[%clk 0:03:41.1]} 27... Kg7 {[%clk
0:04:49]} 28. e6 {[%clk 0:03:25.9]} 28... fxe6 {[%clk 0:04:41.5]} 29. Nxc7
{[%clk 0:03:27.2]} 29... Bb4 {[%clk 0:04:20.4]} 30. Rxe6 {[%clk 0:02:27]} 30...
cxb3 {[%clk 0:03:57]} 31. axb3 {[%clk 0:02:25.4]} 31... Bc8 {[%clk 0:03:40.1]}
32. Be4 {[%clk 0:02:25.8]} 32... Be1+ {[%clk 0:03:30.3]} 33. Kf3 {[%clk
0:02:26.6]} 33... Rd2 {[%clk 0:03:15.1]} 34. Rxg6+ {[%clk 0:02:25.8]} 34... Kf7
{[%clk 0:03:11]} 35. Rf6+ {[%clk 0:02:21.3]} 35... Ke7 {[%clk 0:03:02]} 36. Nd5+
{[%clk 0:02:19.4]} 36... Ke8 {[%clk 0:02:52.6]} 37. g6 {[%clk 0:01:57.1]} 37...
Bxh3 {[%clk 0:01:59.4]} 38. g7 {[%clk 0:01:57.9]} 38... Bg4+ {[%clk 0:01:59]}
39. Ke3 {[%clk 0:01:59.2]} 39... Re2+ {[%clk 0:01:59.4]} 40. Kd4 {[%clk
0:01:47.3]} 40... Bf2+ {[%clk 0:01:33.3]} 41. Ke5 {[%clk 0:01:39]} 41... Be6
{[%clk 0:01:22.6]} 42. Rxe6+ {[%clk 0:01:36.6]} 42... Kf7 {[%clk 0:01:23.2]} 43.
Re7+ {[%clk 0:01:37.7]} 1-0

[Event "GrandPrix_30.05"]
[Site "Chess.com"]
[Date "2020.05.30"]
[Round "6"]
[White "ulkaf961"]
[Black "MAS_1704"]
[Result "1/2-1/2"]
[WhiteElo "1966"]
[BlackElo "2051"]
[TimeControl "600+2"]
[EndTime "10:54:49 PDT"]
[Termination "Game drawn by repetition"]

1. e4 {[%clk 0:10:01.9]} 1... g6 {[%clk 0:09:57.4]} 2. d4 {[%clk 0:10:02.4]}
2... Bg7 {[%clk 0:09:56.2]} 3. Nc3 {[%clk 0:10:03.4]} 3... d6 {[%clk 0:09:56.1]}
4. Be3 {[%clk 0:10:02.6]} 4... Nc6 {[%clk 0:09:55.1]} 5. h3 {[%clk 0:09:47.4]}
5... e5 {[%clk 0:09:54.2]} 6. d5 {[%clk 0:09:37.9]} 6... Nce7 {[%clk 0:09:52.3]}
7. Qd2 {[%clk 0:09:24.1]} 7... f5 {[%clk 0:09:50.2]} 8. f4 {[%clk 0:09:23]} 8...
exf4 {[%clk 0:08:38.2]} 9. Bxf4 {[%clk 0:08:43.4]} 9... fxe4 {[%clk 0:08:23.6]}
10. O-O-O {[%clk 0:08:19.4]} 10... Nf6 {[%clk 0:08:18.7]} 11. g4 {[%clk
0:08:14.4]} 11... O-O {[%clk 0:08:16.9]} 12. Bg2 {[%clk 0:08:13.8]} 12... b5
{[%clk 0:07:12.4]} 13. Nxe4 {[%clk 0:07:28.2]} 13... Nfxd5 {[%clk 0:05:54.6]}
14. Bg5 {[%clk 0:07:20.2]} 14... Be6 {[%clk 0:05:08.1]} 15. Ng3 {[%clk
0:06:55.9]} 15... c6 {[%clk 0:04:54.2]} 16. Re1 {[%clk 0:06:44]} 16... Be5
{[%clk 0:04:08.6]} 17. Nf3 {[%clk 0:06:04.4]} 17... Bxg3 {[%clk 0:04:08]} 18.
Rxe6 {[%clk 0:06:04.9]} 18... Bf4 {[%clk 0:04:08.5]} 19. Bxf4 {[%clk 0:06:04.3]}
19... Nxf4 {[%clk 0:04:04.8]} 20. Rxd6 {[%clk 0:06:02.4]} 20... Qb6 {[%clk
0:03:52.7]} 21. Re1 {[%clk 0:05:53.2]} 21... Ned5 {[%clk 0:03:46.5]} 22. Ng5
{[%clk 0:05:30.1]} 22... Nxg2 {[%clk 0:02:34]} 23. Qxg2 {[%clk 0:05:16.1]} 23...
Qc5 {[%clk 0:02:25.2]} 24. Rd7 {[%clk 0:04:38.5]} 24... Rf2 {[%clk 0:02:22.6]}
25. Qe4 {[%clk 0:04:28.1]} 25... Nf6 {[%clk 0:01:48.7]} 26. Qe6+ {[%clk
0:04:06.4]} 26... Kh8 {[%clk 0:01:48.8]} 27. Nf7+ {[%clk 0:03:36.2]} 27... Kg8
{[%clk 0:01:48.9]} 28. Nd8+ {[%clk 0:03:21]} 28... Kh8 {[%clk 0:01:48.2]} 29.
Nf7+ {[%clk 0:02:32.3]} 29... Kg8 {[%clk 0:01:46.8]} 30. Ne5+ {[%clk 0:00:19.7]}
30... Kh8 {[%clk 0:01:45.6]} 31. Nf7+ {[%clk 0:00:17.7]} 1/2-1/2

[Event "GrandPrix_30.05"]
[Site "Chess.com"]
[Date "2020.05.30"]
[Round "6"]
[White "ninullia"]
[Black "Valeriy_Neverov"]
[Result "1-0"]
[WhiteElo "2264"]
[BlackElo "2089"]
[TimeControl "600+2"]
[EndTime "10:54:56 PDT"]
[Termination "ninullia won on time"]

1. d4 {[%clk 0:09:55.5]} 1... f5 {[%clk 0:09:58.9]} 2. Nc3 {[%clk 0:09:54.7]}
2... Nf6 {[%clk 0:09:57]} 3. Bg5 {[%clk 0:09:55.3]} 3... d5 {[%clk 0:09:57.7]}
4. Bxf6 {[%clk 0:09:56.3]} 4... exf6 {[%clk 0:09:58]} 5. e3 {[%clk 0:09:56.8]}
5... c6 {[%clk 0:09:50.9]} 6. Bd3 {[%clk 0:09:53.4]} 6... Be6 {[%clk 0:09:49.8]}
7. Qf3 {[%clk 0:09:52.3]} 7... g6 {[%clk 0:09:45.9]} 8. h3 {[%clk 0:09:52.8]}
8... Nd7 {[%clk 0:07:29.8]} 9. Nge2 {[%clk 0:09:50.2]} 9... Qb6 {[%clk
0:07:00.9]} 10. O-O-O {[%clk 0:09:50]} 10... O-O-O {[%clk 0:06:55.7]} 11. g4
{[%clk 0:09:49.8]} 11... fxg4 {[%clk 0:06:53.8]} 12. hxg4 {[%clk 0:09:51.7]}
12... Bf7 {[%clk 0:06:23.1]} 13. Rh3 {[%clk 0:09:40.4]} 13... h6 {[%clk
0:05:10.4]} 14. Rdh1 {[%clk 0:09:24.3]} 14... Rg8 {[%clk 0:05:08.5]} 15. Kb1
{[%clk 0:09:13.1]} 15... Kb8 {[%clk 0:04:52.8]} 16. Na4 {[%clk 0:08:35.6]} 16...
Qc7 {[%clk 0:04:38.4]} 17. Nc1 {[%clk 0:07:22.9]} 17... b5 {[%clk 0:04:02]} 18.
Nc3 {[%clk 0:07:10]} 18... a5 {[%clk 0:03:52.4]} 19. a4 {[%clk 0:07:02.3]} 19...
b4 {[%clk 0:03:49.3]} 20. N3e2 {[%clk 0:07:02]} 20... Nb6 {[%clk 0:03:31.7]} 21.
Qxf6 {[%clk 0:06:43.3]} 21... Bg7 {[%clk 0:03:24.3]} 22. Qf4 {[%clk 0:06:37.6]}
22... Nxa4 {[%clk 0:03:16.1]} 23. Nb3 {[%clk 0:06:35]} 23... g5 {[%clk 0:02:55]}
24. Qxc7+ {[%clk 0:06:23.6]} 24... Kxc7 {[%clk 0:02:55.6]} 25. Nxa5 {[%clk
0:06:19.9]} 25... c5 {[%clk 0:02:40.1]} 26. dxc5 {[%clk 0:05:47.8]} 26... Nxc5
{[%clk 0:02:04.2]} 27. Nd4 {[%clk 0:05:44.1]} 27... Nxd3 {[%clk 0:02:02.8]} 28.
cxd3 {[%clk 0:05:42.4]} 28... Bxd4 {[%clk 0:02:03.6]} 29. exd4 {[%clk
0:05:39.9]} 29... Bg6 {[%clk 0:02:04.4]} 30. Nb3 {[%clk 0:05:11.7]} 30... Rdf8
{[%clk 0:01:54.8]} 31. R1h2 {[%clk 0:05:09.3]} 31... Rf4 {[%clk 0:01:50.6]} 32.
Nc5 {[%clk 0:04:59.3]} 32... Rxg4 {[%clk 0:01:44.4]} 33. Kc2 {[%clk 0:04:59.6]}
33... Kd6 {[%clk 0:01:31.6]} 34. Rxh6 {[%clk 0:04:08.1]} 34... Rxd4 {[%clk
0:01:30]} 35. Nb3 {[%clk 0:04:09.7]} 35... Rf4 {[%clk 0:01:29]} 36. Kd2 {[%clk
0:03:56.2]} 36... Ke7 {[%clk 0:01:11.8]} 37. R6h3 {[%clk 0:03:51.5]} 37... Kf6
{[%clk 0:01:09.2]} 38. Re3 {[%clk 0:03:44]} 38... Rc8 {[%clk 0:01:01.5]} 39. f3
{[%clk 0:03:42.5]} 39... d4 {[%clk 0:00:54.6]} 40. Ree2 {[%clk 0:03:30.3]} 40...
Rxf3 {[%clk 0:00:55.5]} 41. Ref2 {[%clk 0:03:05.8]} 41... Rxf2+ {[%clk
0:00:21.2]} 42. Rxf2+ {[%clk 0:03:07.7]} 42... Ke5 {[%clk 0:00:21.7]} 43. Re2+
{[%clk 0:03:09.1]} 43... Kf6 {[%clk 0:00:14.8]} 44. Nxd4 {[%clk 0:02:59.5]}
44... Rd8 {[%clk 0:00:15.1]} 45. Rf2+ {[%clk 0:03:00.9]} 45... Kg7 {[%clk
0:00:04.1]} 46. Ne6+ {[%clk 0:03:00.7]} 1-0

[Event "GrandPrix_30.05"]
[Site "Chess.com"]
[Date "2020.05.30"]
[Round "6"]
[White "AsadliVugar"]
[Black "GeorgMeier"]
[Result "1-0"]
[WhiteElo "2576"]
[BlackElo "2623"]
[TimeControl "600+2"]
[EndTime "10:54:57 PDT"]
[Termination "AsadliVugar won by resignation"]

1. e4 {[%clk 0:10:01.9]} 1... e6 {[%clk 0:10:00.9]} 2. d4 {[%clk 0:09:50.6]}
2... d5 {[%clk 0:10:02]} 3. Nd2 {[%clk 0:09:46.9]} 3... dxe4 {[%clk 0:10:01.5]}
4. Nxe4 {[%clk 0:09:47.9]} 4... Nd7 {[%clk 0:10:03.4]} 5. Nf3 {[%clk 0:09:39.9]}
5... Ngf6 {[%clk 0:10:04.4]} 6. Bd3 {[%clk 0:09:41.5]} 6... c5 {[%clk
0:10:04.6]} 7. O-O {[%clk 0:09:39.9]} 7... Nxe4 {[%clk 0:10:05]} 8. Bxe4 {[%clk
0:09:40.9]} 8... Nf6 {[%clk 0:10:06.9]} 9. Bg5 {[%clk 0:09:19.4]} 9... cxd4
{[%clk 0:10:07.7]} 10. Nxd4 {[%clk 0:09:16.4]} 10... Be7 {[%clk 0:10:09.2]} 11.
Bd3 {[%clk 0:09:09.6]} 11... O-O {[%clk 0:10:06.4]} 12. Re1 {[%clk 0:09:08.7]}
12... Qd5 {[%clk 0:08:57]} 13. Nf3 {[%clk 0:08:33.9]} 13... Rd8 {[%clk
0:05:53.5]} 14. Qe2 {[%clk 0:07:14.5]} 14... h6 {[%clk 0:05:35.1]} 15. Bh4
{[%clk 0:07:02.5]} 15... Bd7 {[%clk 0:05:09.2]} 16. Ne5 {[%clk 0:06:47.4]} 16...
Bc6 {[%clk 0:05:03.7]} 17. Nxc6 {[%clk 0:06:44.2]} 17... Qxc6 {[%clk 0:05:02.7]}
18. a4 {[%clk 0:06:27.2]} 18... a5 {[%clk 0:04:47.6]} 19. Bb5 {[%clk 0:06:15.8]}
19... Qc7 {[%clk 0:04:48.3]} 20. Rad1 {[%clk 0:06:13.4]} 20... Rac8 {[%clk
0:04:22.2]} 21. c3 {[%clk 0:06:11.2]} 21... Kf8 {[%clk 0:04:21]} 22. Rxd8+
{[%clk 0:05:49.6]} 22... Rxd8 {[%clk 0:04:18.3]} 23. Rd1 {[%clk 0:05:50.9]}
23... b6 {[%clk 0:02:32]} 24. Rxd8+ {[%clk 0:05:00.3]} 24... Qxd8 {[%clk
0:02:32.9]} 25. Qd3 {[%clk 0:04:57.8]} 25... Qxd3 {[%clk 0:02:27.2]} 26. Bxd3
{[%clk 0:04:58.8]} 26... Nh5 {[%clk 0:02:28.7]} 27. Bxe7+ {[%clk 0:04:53]} 27...
Kxe7 {[%clk 0:02:30.6]} 28. g3 {[%clk 0:04:51.7]} 28... f5 {[%clk 0:02:17.9]}
29. Kf1 {[%clk 0:04:52.5]} 29... Nf6 {[%clk 0:02:12.5]} 30. Ke2 {[%clk
0:04:53.9]} 30... g6 {[%clk 0:02:03.4]} 31. Bc2 {[%clk 0:04:45.3]} 31... Kd6
{[%clk 0:01:46.9]} 32. f3 {[%clk 0:04:42.2]} 32... e5 {[%clk 0:01:40.2]} 33. Kd3
{[%clk 0:04:43.3]} 33... Kc5 {[%clk 0:01:40.5]} 34. Bb3 {[%clk 0:04:38.4]} 34...
f4 {[%clk 0:01:02.3]} 35. gxf4 {[%clk 0:04:31.8]} 35... exf4 {[%clk 0:01:03.5]}
36. Bf7 {[%clk 0:04:29.6]} 36... g5 {[%clk 0:01:04.6]} 37. Be6 {[%clk
0:04:30.5]} 37... h5 {[%clk 0:00:58.9]} 38. h3 {[%clk 0:04:31.6]} 38... Kd6
{[%clk 0:00:59.9]} 39. Bc8 {[%clk 0:04:27.5]} 39... Kd5 {[%clk 0:00:57.6]} 40.
b4 {[%clk 0:04:23.2]} 40... Ne8 {[%clk 0:00:24.3]} 41. c4+ {[%clk 0:04:07.8]}
41... Kc6 {[%clk 0:00:13.7]} 42. bxa5 {[%clk 0:03:59.2]} 42... bxa5 {[%clk
0:00:15.6]} 43. Kd4 {[%clk 0:04:00.3]} 43... Nc7 {[%clk 0:00:11.1]} 44. c5
{[%clk 0:03:48.4]} 44... Ne8 {[%clk 0:00:12.1]} 45. Bf5 {[%clk 0:03:41.8]} 45...
Ng7 {[%clk 0:00:08.5]} 46. Be4+ {[%clk 0:03:41.1]} 46... Kc7 {[%clk 0:00:09.9]}
47. Ke5 {[%clk 0:03:42.5]} 47... Ne8 {[%clk 0:00:07.2]} 48. Kf5 {[%clk
0:03:42.1]} 48... Ng7+ {[%clk 0:00:07.6]} 49. Kxg5 {[%clk 0:03:43.2]} 49... Ne6+
{[%clk 0:00:09]} 50. Kxh5 {[%clk 0:03:44.1]} 50... Nxc5 {[%clk 0:00:10.9]} 51.
Bc2 {[%clk 0:03:45.6]} 51... Kd6 {[%clk 0:00:09.7]} 52. Kg5 {[%clk 0:03:47.1]}
52... Ne6+ {[%clk 0:00:07.2]} 53. Kf6 {[%clk 0:03:46.2]} 53... Nd4 {[%clk
0:00:08.1]} 54. Bd1 {[%clk 0:03:47.3]} 54... Nc6 {[%clk 0:00:03.4]} 55. h4
{[%clk 0:03:47.9]} 55... Kd7 {[%clk 0:00:04.1]} 56. h5 {[%clk 0:03:47.1]} 56...
Ke8 {[%clk 0:00:05.6]} 57. h6 {[%clk 0:03:44.6]} 1-0